bitfinex/quotes_BTCUSD_20240729
["timestamp","ask_amount","ask_price","bid_price","bid_amount"]
[1722271047211,0.148688,67255.0,67253.0,0.05031261]
[1722271047436,0.004,67259.0,67253.0,0.05031261]
[1722271047663,0.14869,67254.0,67253.0,0.02100166]
[1722271047890,0.004,67259.0,67253.0,0.02100166]
[1722271048454,0.05,67273.0,67253.0,0.02100166]
[1722271048550,0.05,67273.0,67250.0,2.009207]
[1722271048551,0.15446413,67258.0,67250.0,2.009207]
[1722271048759,0.00753789,67268.0,67255.0,0.1]
[1722271048955,0.0624,67285.0,67264.0,0.1]
[1722271049156,0.28168848,67284.0,67265.0,0.14309939]
[1722271049365,0.0624,67285.0,67273.0,0.148647]
[1722271049366,0.15442689,67283.0,67273.0,0.148647]
[1722271049499,0.15442689,67282.0,67274.0,0.148644]
[1722271049696,0.297209,67293.0,67266.0,0.02931095]
[1722271049697,0.15442689,67281.0,67280.0,0.297265]
[1722271049894,0.15442689,67281.0,67278.0,0.1]
[1722271049895,0.05,67299.0,67281.0,0.0633]
[1722271050140,0.15,67297.0,67272.0,0.0633]
[1722271050353,0.148637,67278.0,67272.0,0.0633]
[1722271050511,0.42473002,67296.0,67273.0,0.14309939]
[1722271050512,0.14681534,67296.0,67273.0,0.14309939]
[1722271050713,0.148621,67285.0,67273.0,0.14309939]
[1722271050940,0.148622,67285.0,67273.0,0.29174539]
[1722271051137,0.148623,67284.0,67273.0,0.29174639]
[1722271051343,0.14309939,67296.0,67275.0,0.148642]
[1722271051519,0.148604,67293.0,67281.0,0.148628]
[1722271051719,0.148609,67291.0,67278.0,0.1]
[1722271051916,0.148609,67291.0,67277.0,0.1008545]
[1722271051917,0.15439843,67290.0,67285.0,0.1]
[1722271052192,0.297183,67299.0,67285.0,0.24309939]
[1722271052392,0.148606,67292.0,67285.0,0.24309939]
[1722271052566,0.297211,67293.0,67285.0,0.14309939]
[1722271052744,0.07154355,67309.0,67285.0,0.27241034]
[1722271052745,0.1543892,67292.0,67285.0,0.27241034]
[1722271052946,0.12154355,67309.0,67285.0,0.27241034]
[1722271052947,0.297205,67294.0,67285.0,0.02931095]
[1722271053264,0.05,67307.0,67285.0,0.02931095]
[1722271053265,0.148613,67289.0,67285.0,0.02931095]
[1722271053432,0.148604,67293.0,67285.0,0.02931095]
[1722271053639,0.148608,67291.0,67285.0,0.02931095]
[1722271053839,0.148613,67289.0,67285.0,0.02931095]
[1722271054209,0.297194,67296.0,67285.0,0.12931095]
[1722271054403,0.3029878,67295.0,67285.0,0.12931095]
[1722271054558,0.1543878,67294.0,67285.0,0.12931095]
[1722271054768,0.3029918,67293.0,67285.0,0.12931095]
[1722271054969,0.1543878,67292.0,67285.0,0.12931095]
[1722271055375,0.148611,67290.0,67285.0,0.12931095]
[1722271055598,0.012,67296.0,67285.0,0.12931095]
[1722271056074,0.50080486,67309.0,67285.0,0.02931095]
[1722271056075,0.445857,67286.0,67285.0,0.02931095]
[1722271056279,0.148676,67260.0,67259.0,0.0768]
[1722271056484,0.297296,67273.0,67259.0,0.0768]
[1722271056691,0.297311,67270.0,67259.0,0.0768]
[1722271056895,0.19309939,67281.0,67259.0,0.0768]
[1722271057008,0.446035,67259.0,67255.0,0.1]
[1722271057248,0.0666,67272.0,67255.0,0.1]
[1722271057489,0.148668,67264.0,67255.0,0.1]
[1722271057709,0.42638844,67271.0,67255.0,0.1]
[1722271057710,0.148666,67265.0,67255.0,0.24309939]
[1722271057932,0.148668,67264.0,67255.0,0.24309939]
[1722271058149,0.0015542,67263.0,67255.0,0.24309939]
[1722271058376,0.0015542,67263.0,67251.0,0.02931095]
[1722271058630,0.446082,67252.0,67251.0,0.02931095]
[1722271058878,0.743482,67251.0,67250.0,2.019307]
[1722271059109,0.8979611,67251.0,67250.0,2.019307]
[1722271060223,0.1544791,67251.0,67250.0,2.019307]
[1722271060422,0.148675,67261.0,67250.0,2.019307]
[1722271060578,0.15446956,67260.0,67252.0,0.07154355]
[1722271060775,0.297361,67259.0,67250.0,2.019307]
[1722271061048,0.14869,67254.0,67250.0,2.019307]
[1722271061192,0.003,67251.0,67250.0,2.29731595]
[1722271061551,0.003,67251.0,67250.0,2.04861795]
[1722271061767,0.003,67251.0,67250.0,2.019307]
[1722271061768,0.151696,67251.0,67250.0,2.019307]
[1722271061904,0.446089,67251.0,67250.0,2.019307]
[1722271062323,0.88658139,67251.0,67250.0,2.019307]
[1722271062549,1.33846081,67251.0,67250.0,2.019307]
[1722271062980,1.48846081,67251.0,67250.0,2.019307]
[1722271063214,1.82668433,67251.0,67250.0,2.019307]
[1722271063444,1.7686158,67251.0,67250.0,2.019307]
[1722271063656,2.28027646,67251.0,67250.0,2.019307]
[1722271064259,1.4620158,67251.0,67250.0,2.019307]
[1722271064445,1.33846081,67251.0,67250.0,2.019307]
[1722271064665,0.89796842,67251.0,67250.0,2.019307]
[1722271065118,1.39146081,67251.0,67250.0,2.019307]
[1722271065546,1.48846081,67251.0,67250.0,2.019307]
[1722271065764,2.12367777,67251.0,67250.0,2.019307]
[1722271065966,2.13767777,67251.0,67250.0,2.019307]
[1722271066190,1.84028477,67251.0,67250.0,2.019307]
[1722271066380,1.50246081,67251.0,67250.0,2.009207]
[1722271066738,1.35246081,67251.0,67250.0,2.009207]
[1722271066940,1.36646081,67251.0,67250.0,2.009207]
[1722271067365,1.06906781,67251.0,67250.0,2.009207]
[1722271067565,1.36646081,67251.0,67250.0,2.009207]
[1722271068044,1.51646081,67251.0,67250.0,2.009207]
[1722271068246,1.36646081,67251.0,67250.0,2.009207]
[1722271068748,1.06906781,67251.0,67250.0,2.009207]
[1722271069232,0.92596842,67251.0,67250.0,2.009207]
[1722271069941,0.62857542,67251.0,67250.0,2.009207]
[1722271070144,0.62858921,67251.0,67250.0,2.009207]
[1722271070352,0.62858801,67251.0,67250.0,2.009207]
[1722271070588,0.028,67251.0,67250.0,2.009207]
[1722271071010,0.028,67251.0,67250.0,2.455302]
[1722271071251,0.028,67251.0,67250.0,2.89579839]
[1722271071955,0.0643,67278.0,67264.0,0.0803]
[1722271072099,0.42926131,67269.0,67264.0,0.10961095]
[1722271072296,0.0643,67278.0,67267.0,0.14866]
[1722271072297,0.148637,67278.0,67267.0,0.14866]
[1722271072614,0.297279,67277.0,67264.0,0.10961095]
[1722271072814,0.297257,67282.0,67269.0,0.07154355]
[1722271073033,0.148635,67279.0,67269.0,0.07154355]
[1722271073233,0.14309939,67284.0,67264.0,0.35271034]
[1722271073234,0.297278,67277.0,67264.0,0.35271034]
[1722271073436,0.14309939,67284.0,67264.0,0.35271034]
[1722271073638,0.297276,67278.0,67264.0,0.35271034]
[1722271073841,0.148644,67275.0,67264.0,0.35271034]
[1722271074042,0.148646,67274.0,67264.0,0.20961095]
[1722271074250,0.014,67277.0,67265.0,0.14309939]
[1722271074484,0.014,67277.0,67266.0,0.148662]
[1722271074677,0.014,67277.0,67267.0,0.14309939]
[1722271074903,0.148639,67277.0,67267.0,0.14309939]
[1722271075050,0.297245,67285.0,67267.0,0.14309939]
[1722271075051,0.297248,67284.0,67267.0,0.14309939]
[1722271075255,0.14019356,67291.0,67267.0,0.14309939]
[1722271075503,0.297222,67290.0,67274.0,0.1]
[1722271075676,0.148627,67283.0,67274.0,0.27241034]
[1722271075896,0.05,67293.0,67274.0,0.02931095]
[1722271075897,0.00371576,67292.0,67274.0,0.02931095]
[1722271076063,0.148626,67283.0,67274.0,0.02931095]
[1722271076244,0.297221,67290.0,67274.0,0.02931095]
[1722271076444,0.148628,67282.0,67274.0,0.02931095]
[1722271076650,0.148629,67282.0,67274.0,0.02931095]
[1722271076860,0.014,67278.0,67274.0,0.02931095]
[1722271077585,0.14863,67281.0,67274.0,0.02931095]
[1722271077803,0.14309939,67291.0,67274.0,0.02931095]
[1722271078041,0.14309939,67291.0,67267.0,0.1]
[1722271078042,0.148659,67268.0,67267.0,0.12931095]
[1722271078256,0.00371639,67278.0,67267.0,0.12931095]
[1722271078495,0.148653,67271.0,67267.0,0.12931095]
[1722271078726,0.297306,67271.0,67267.0,0.12931095]
[1722271079046,0.2439,67279.0,67267.0,0.02931095]
[1722271079047,0.148659,67268.0,67267.0,0.02931095]
[1722271079230,0.445977,67268.0,67267.0,0.02931095]
[1722271079471,0.512277,67268.0,67260.0,0.0101]
[1722271079688,0.58891739,67268.0,67224.0,0.2439]
[1722271079869,0.58891739,67268.0,67217.0,0.16652146]
[1722271079870,0.33818,67195.0,67194.0,0.10544292]
[1722271080088,1.24182,67190.0,67185.0,0.09266711]
[1722271080278,1.24182,67190.0,67183.0,0.009207]
[1722271080279,1.99925364,67190.0,67183.0,0.009207]
[1722271080500,1.75055854,67190.0,67183.0,0.009207]
[1722271080703,2.29342154,67190.0,67183.0,0.009207]
[1722271080823,2.2175054,67190.0,67183.0,0.009207]
[1722271081023,2.56716902,67190.0,67183.0,0.009207]
[1722271081262,2.79916902,67190.0,67183.0,0.009207]
[1722271081655,2.21750602,67190.0,67183.0,0.009207]
[1722271081851,2.21750602,67190.0,67189.0,0.010207]
[1722271081852,2.21950602,67190.0,67189.0,0.010207]
[1722271082060,2.11951024,67190.0,67189.0,0.010207]
[1722271082340,1.99575854,67190.0,67189.0,0.010207]
[1722271082533,1.94575854,67190.0,67189.0,0.010207]
[1722271082793,1.99575854,67190.0,67189.0,0.010207]
[1722271082991,2.09575854,67190.0,67189.0,0.010207]
[1722271083250,1.94575854,67190.0,67189.0,0.010207]
[1722271083457,1.99575854,67190.0,67189.0,0.010207]
[1722271083625,2.09575854,67190.0,67189.0,0.010207]
[1722271083922,1.94575854,67190.0,67189.0,0.010207]
[1722271084124,2.09575854,67190.0,67189.0,0.010207]
[1722271084469,1.99575854,67190.0,67189.0,0.010207]
[1722271084862,2.09575854,67190.0,67189.0,0.009207]
[1722271085008,2.13885793,67190.0,67189.0,0.009207]
[1722271085214,2.67962032,67190.0,67189.0,0.009207]
[1722271085391,1.7982,67184.0,67183.0,0.009207]
[1722271085599,2.3195275,67184.0,67183.0,0.009207]
[1722271086011,2.1695275,67184.0,67183.0,0.009207]
[1722271086214,2.04577493,67184.0,67183.0,0.009207]
[1722271086475,1.89129939,67184.0,67183.0,0.009207]
[1722271086886,1.84129939,67184.0,67183.0,0.009207]
[1722271087056,1.193911,67184.0,67183.0,0.009207]
[1722271087230,0.896222,67184.0,67183.0,0.009207]
[1722271087827,0.152,67184.0,67183.0,0.009207]
[1722271088608,0.60225458,67184.0,67183.0,0.009207]
[1722271088800,0.598533,67184.0,67183.0,0.009207]
[1722271089249,0.152,67184.0,67183.0,0.009207]
[1722271089678,0.15,67184.0,67183.0,0.009207]
[1722271089873,0.05,67188.0,67183.0,0.15230639]
[1722271090075,0.15,67185.0,67184.0,0.14309939]
[1722271090493,0.014,67190.0,67184.0,0.14309939]
[1722271090494,0.15,67188.0,67184.0,0.14309939]
[1722271090703,0.05,67190.0,67189.0,0.297667]
[1722271090909,0.002,67194.0,67190.0,0.0633]
[1722271091118,0.05,67200.0,67191.0,0.14309939]
[1722271091332,0.002,67199.0,67191.0,0.14309939]
[1722271091552,0.002,67199.0,67195.0,0.07154355]
[1722271091744,0.15,67197.0,67192.0,0.04190178]
[1722271091916,0.05,67191.0,67190.0,0.0633]
[1722271092124,0.152,67191.0,67190.0,0.14309939]
[1722271092280,0.298844,67184.0,67176.0,0.0633]
[1722271092482,0.152,67184.0,67176.0,0.0633]
[1722271092690,0.300844,67184.0,67176.0,0.0633]
[1722271092895,0.449689,67184.0,67176.0,0.0633]
[1722271093094,0.896222,67184.0,67176.0,0.0633]
[1722271093443,0.896222,67184.0,67175.0,0.0957848]
[1722271093444,1.207911,67184.0,67183.0,0.010207]
[1722271094076,0.166,67184.0,67183.0,0.010207]
[1722271094479,0.166,67184.0,67183.0,0.15330639]
[1722271094480,0.014,67184.0,67183.0,0.15330639]
[1722271094667,0.014,67184.0,67183.0,0.21500639]
[1722271094872,0.014,67184.0,67183.0,0.36385339]
[1722271095187,0.014,67184.0,67183.0,0.21500639]
[1722271095593,0.014,67184.0,67183.0,0.73934739]
[1722271095815,0.05,67189.0,67183.0,0.39180639]
[1722271095968,0.15,67185.0,67184.0,0.14309939]
[1722271096167,0.05,67194.0,67184.0,0.21464294]
[1722271096514,0.05,67192.0,67186.0,0.148839]
[1722271096759,0.05,67192.0,67187.0,0.14442166]
[1722271096960,0.016,67195.0,67183.0,0.148707]
[1722271096961,0.014,67195.0,67194.0,0.148822]
[1722271097134,0.05,67202.0,67194.0,0.14309939]
[1722271097356,0.15,67204.0,67197.0,0.297631]
[1722271097509,0.002,67213.0,67197.0,0.297631]
[1722271097510,0.05,67207.0,67201.0,0.148806]
[1722271097710,0.05,67207.0,67198.0,0.1456109]
[1722271097711,0.05,67211.0,67205.0,0.07154355]
[1722271097888,0.05,67210.0,67207.0,0.0778]
[1722271098088,0.05,67209.0,67208.0,0.14309939]
[1722271098291,0.198789,67209.0,67208.0,0.14309939]
[1722271098525,0.598368,67209.0,67208.0,0.14309939]
[1722271098693,0.15,67209.0,67208.0,0.14309939]
[1722271098905,0.152,67209.0,67208.0,0.14309939]
[1722271099304,0.598368,67209.0,67208.0,0.14309939]
[1722271099511,0.895947,67209.0,67208.0,0.14309939]
[1722271099721,0.598368,67209.0,67208.0,0.14309939]
[1722271099913,0.152,67209.0,67208.0,0.14309939]
[1722271100183,0.15,67209.0,67208.0,0.14309939]
[1722271100351,0.152,67209.0,67208.0,0.14309939]
[1722271100494,0.598401,67204.0,67203.0,0.0617]
[1722271100708,0.598401,67204.0,67197.0,0.0757]
[1722271100709,0.49644,67198.0,67197.0,0.0757]
[1722271100999,0.49644,67198.0,67188.0,1.2794]
[1722271101000,0.148833,67189.0,67188.0,1.2794]
[1722271101103,0.349627,67198.0,67188.0,1.2794]
[1722271101104,0.05,67196.0,67188.0,0.14309939]
[1722271101310,0.05,67196.0,67189.0,0.14309939]
[1722271101538,0.297591,67207.0,67189.0,0.14309939]
[1722271101539,0.05,67201.0,67189.0,0.14309939]
[1722271101739,0.05,67205.0,67193.0,0.1]
[1722271101939,0.1988,67204.0,67203.0,0.005]
[1722271102179,0.05,67196.0,67185.0,0.28930858]
[1722271102357,0.15,67196.0,67187.0,0.14309939]
[1722271102572,0.155,67196.0,67188.0,0.1]
[1722271102747,0.055,67196.0,67189.0,0.14309939]
[1722271102947,0.005,67196.0,67193.0,0.148824]
[1722271103148,0.005,67196.0,67194.0,0.14309939]
[1722271103367,0.005,67196.0,67195.0,1.05090394]
[1722271103569,0.05,67215.0,67203.0,0.1]
[1722271103780,0.05,67214.0,67209.0,0.2444]
[1722271104143,0.15,67217.0,67210.0,0.14309939]
[1722271104286,0.05,67220.0,67212.0,0.297565]
[1722271104496,0.05,67220.0,67213.0,0.14309939]
[1722271104833,0.05,67226.0,67218.0,0.07154355]
[1722271105132,0.47926131,67222.0,67219.0,0.14309939]
[1722271105415,0.00371873,67233.0,67219.0,0.14309939]
[1722271105416,0.15,67227.0,67220.0,0.07154355]
[1722271105611,0.15,67227.0,67215.0,0.29755]
[1722271105612,0.05,67227.0,67221.0,0.14309939]
[1722271105837,0.05,67222.0,67221.0,0.14309939]
[1722271106006,0.05,67224.0,67221.0,0.14309939]
[1722271106206,0.15,67225.0,67221.0,0.14309939]
[1722271106417,0.05,67222.0,67221.0,0.14309939]
[1722271106584,0.399509,67225.0,67221.0,0.14309939]
[1722271106585,0.05,67223.0,67221.0,0.14100149]
[1722271106992,0.05,67225.0,67221.0,0.14100149]
[1722271107210,0.15,67225.0,67221.0,0.14100149]
[1722271107412,0.29876,67222.0,67221.0,0.14100149]
[1722271107588,0.15,67222.0,67221.0,0.14100149]
[1722271107814,0.0637,67244.0,67221.0,0.14100149]
[1722271107815,0.05,67226.0,67221.0,0.14100149]
[1722271108042,0.1,67226.0,67221.0,0.14100149]
[1722271108315,0.1,67226.0,67222.0,0.297519]
[1722271108316,0.05,67226.0,67222.0,0.297519]
[1722271108472,0.1,67231.0,67223.0,0.14309939]
[1722271108632,0.05,67235.0,67227.0,0.07154355]
[1722271108839,0.05,67235.0,67228.0,0.14309939]
[1722271109060,0.05,67242.0,67230.0,0.24309939]
[1722271109261,0.297396,67251.0,67234.0,0.21464294]
[1722271109262,0.04,67246.0,67234.0,0.21464294]
[1722271109497,0.05,67243.0,67234.0,0.14309939]
[1722271109702,0.05,67243.0,67235.0,0.148731]
[1722271110008,0.05,67238.0,67236.0,0.14309939]
[1722271110215,0.05,67237.0,67236.0,0.14309939]
[1722271110740,0.148749,67228.0,67226.0,0.28930858]
[1722271110942,0.05,67233.0,67228.0,0.148746]
[1722271111121,0.05,67230.0,67229.0,0.14309939]
[1722271111318,0.297438,67241.0,67229.0,0.14309939]
[1722271111319,0.05,67241.0,67229.0,0.14309939]
[1722271111502,0.297391,67252.0,67238.0,0.14309939]
[1722271111503,0.04,67247.0,67238.0,0.14309939]
[1722271111720,0.04,67234.0,67227.0,0.1]
[1722271111915,0.05,67239.0,67232.0,0.07154355]
[1722271112125,0.05,67242.0,67235.0,0.1]
[1722271112333,0.05,67237.0,67236.0,0.14309939]
[1722271112557,0.05,67239.0,67236.0,0.14309939]
[1722271112767,0.04,67244.0,67236.0,0.14309939]
[1722271112975,0.05,67245.0,67236.0,0.24309939]
[1722271113311,0.09,67246.0,67236.0,0.24309939]
[1722271113312,0.04,67246.0,67242.0,0.07154355]
[1722271113518,0.14,67244.0,67242.0,0.14309939]
[1722271113740,0.14,67243.0,67242.0,0.14309939]
[1722271114095,0.04,67243.0,67242.0,0.14309939]
[1722271114293,0.1,67245.0,67242.0,0.14309939]
[1722271114294,0.05,67245.0,67242.0,0.14309939]
[1722271114496,0.04,67243.0,67242.0,0.14309939]
[1722271114668,0.04,67242.0,67236.0,0.148728]
[1722271114864,0.04,67242.0,67237.0,0.14309939]
[1722271115230,0.04,67247.0,67239.0,0.07154355]
[1722271115430,0.04,67249.0,67240.0,0.14309939]
[1722271115640,0.05,67251.0,67244.0,0.297423]
[1722271115776,0.09,67253.0,67248.0,0.22024555]
[1722271115975,0.002,67256.0,67251.0,0.148696]
[1722271116213,0.002,67256.0,67252.0,0.14309939]
[1722271116691,0.09,67257.0,67252.0,0.14121128]
[1722271117413,0.04,67257.0,67253.0,0.148692]
[1722271117607,0.09,67255.0,67254.0,0.14309939]
[1722271117834,0.14,67255.0,67254.0,0.14309939]
[1722271118040,0.05,67257.0,67254.0,0.14309939]
[1722271118261,0.09,67261.0,67255.0,0.297375]
[1722271118601,0.09,67261.0,67260.0,0.148676]
[1722271118830,0.00838,67262.0,67260.0,0.28589939]
[1722271119052,0.00838,67262.0,67261.0,0.29177339]
[1722271119269,0.00838,67262.0,67261.0,0.58912239]
[1722271119468,0.00838,67262.0,67261.0,0.88647139]
[1722271119995,0.00838,67262.0,67261.0,0.14309939]
[1722271120382,0.05838,67262.0,67261.0,0.14309939]
[1722271120558,0.00759087,67262.0,67261.0,0.14309939]
[1722271120759,0.00759087,67262.0,67261.0,0.58108197]
[1722271120895,0.00759087,67262.0,67261.0,0.43240797]
[1722271121307,0.00859087,67262.0,67261.0,0.59408197]
[1722271121792,0.00859087,67262.0,67261.0,0.43240797]
[1722271121793,0.00759087,67262.0,67261.0,0.43240797]
[1722271121908,0.00759087,67262.0,67261.0,0.14309939]
[1722271121909,0.14759087,67262.0,67261.0,0.14309939]
[1722271122108,0.00259087,67262.0,67261.0,0.14309939]
[1722271122780,0.05259087,67262.0,67261.0,0.14309939]
[1722271122935,0.00359087,67262.0,67261.0,0.15609939]
[1722271123282,0.05559087,67262.0,67261.0,0.15609939]
[1722271123484,0.05359087,67262.0,67261.0,0.15609939]
[1722271123624,0.05559087,67262.0,67261.0,0.15609939]
[1722271123823,0.00359087,67262.0,67261.0,0.15609939]
[1722271124265,0.00359087,67262.0,67261.0,0.30477339]
[1722271124471,0.00359087,67262.0,67261.0,0.89947139]
[1722271124867,0.00259087,67262.0,67261.0,0.58912239]
[1722271125295,0.00259087,67262.0,67261.0,0.59412239]
[1722271125710,0.00259087,67262.0,67261.0,0.88647139]
[1722271125928,0.00359087,67262.0,67261.0,0.99247139]
[1722271126511,0.00359087,67262.0,67261.0,0.9937721]
[1722271127490,0.00359087,67262.0,67261.0,1.0267721]
[1722271127691,0.00359087,67262.0,67261.0,1.4612211]
[1722271127900,0.00259087,67262.0,67261.0,1.4552211]
[1722271128428,0.00259087,67262.0,67261.0,1.4562211]
[1722271128774,0.00259087,67262.0,67261.0,1.7525701]
[1722271128921,0.00259087,67262.0,67261.0,1.4552211]
[1722271129123,0.00259087,67262.0,67261.0,1.7645701]
[1722271129124,0.00359087,67262.0,67261.0,1.7645701]
[1722271130475,0.00838,67285.0,67284.0,0.148623]
[1722271130698,0.00838,67285.0,67284.0,0.58896939]
[1722271131467,0.14838,67285.0,67284.0,0.14309939]
[1722271131690,0.15038,67285.0,67284.0,0.14309939]
[1722271132162,0.06038,67285.0,67284.0,0.14309939]
[1722271132521,0.596244,67285.0,67284.0,0.14309939]
[1722271132691,0.299001,67285.0,67284.0,0.14309939]
[1722271132906,0.15690046,67285.0,67284.0,0.14309939]
[1722271133093,0.15038,67285.0,67284.0,0.14309939]
[1722271133296,0.05,67274.0,67271.0,0.148651]
[1722271133485,0.05,67275.0,67273.0,0.148647]
[1722271133692,0.002,67278.0,67273.0,0.148647]
[1722271133693,0.05,67278.0,67277.0,0.148639]
[1722271133901,0.05,67278.0,67277.0,0.29173839]
[1722271134100,0.05,67278.0,67277.0,0.14309939]
[1722271134300,0.05,67280.0,67277.0,0.31464294]
[1722271134562,0.05,67280.0,67278.0,0.14309939]
[1722271134905,0.05,67282.0,67279.0,0.148634]
[1722271135106,0.05,67282.0,67280.0,0.29173139]
[1722271135490,0.00838,67285.0,67280.0,0.14309939]
[1722271135676,0.00838,67285.0,67284.0,0.44587]
[1722271135823,0.00838,67285.0,67284.0,0.29172239]
[1722271136027,0.00838,67285.0,67284.0,0.14309939]
[1722271136212,0.00838,67285.0,67284.0,0.36326594]
[1722271136412,0.00838,67285.0,67284.0,1.34152497]
[1722271136869,0.00838,67285.0,67284.0,0.98297797]
[1722271137074,0.00838,67285.0,67284.0,0.14309939]
[1722271137281,0.00838,67285.0,67284.0,0.58896939]
[1722271137489,0.00838,67285.0,67284.0,0.88621639]
[1722271137638,0.00838,67285.0,67284.0,0.29172239]
[1722271137823,0.00838,67285.0,67284.0,0.88621639]
[1722271139381,0.00838,67285.0,67284.0,0.58896939]
[1722271139584,0.00838,67285.0,67284.0,0.88621639]
[1722271140468,0.05938,67285.0,67284.0,0.14309939]
[1722271140673,0.03169015,67285.0,67284.0,0.29172239]
[1722271141059,0.08169015,67285.0,67284.0,0.14309939]
[1722271141287,0.23929015,67285.0,67284.0,0.14309939]
[1722271141489,0.51717704,67285.0,67284.0,0.14309939]
[1722271141804,0.05,67278.0,67274.0,0.00766948]
[1722271142008,0.05,67276.0,67275.0,0.14309939]
[1722271142392,0.41992189,67276.0,67275.0,0.14309939]
[1722271143150,0.29639543,67276.0,67275.0,0.14309939]
[1722271143355,0.56856558,67276.0,67275.0,0.14309939]
[1722271143760,0.41992458,67276.0,67275.0,0.14309939]
[1722271143961,0.41792458,67276.0,67275.0,0.14309939]
[1722271144162,0.41992458,67276.0,67275.0,0.14309939]
[1722271144370,0.41792458,67276.0,67275.0,0.14309939]
[1722271144578,0.27792458,67276.0,67275.0,0.58902939]
[1722271144808,0.15439543,67276.0,67275.0,0.29174239]
[1722271145023,0.17551395,67276.0,67275.0,0.14309939]
[1722271145221,0.32790938,67276.0,67275.0,0.14509939]
[1722271145626,0.27790938,67276.0,67275.0,0.14509939]
[1722271145992,0.32790938,67276.0,67275.0,0.14509939]
[1722271146203,0.41790938,67276.0,67275.0,0.14509939]
[1722271146406,0.41991606,67276.0,67275.0,0.14509939]
[1722271147354,0.56855706,67276.0,67275.0,0.14509939]
[1722271147562,0.41991606,67276.0,67275.0,0.14509939]
[1722271147769,0.41791606,67276.0,67275.0,0.14509939]
[1722271148039,0.41991606,67276.0,67275.0,0.14509939]
[1722271148560,1.09746106,67276.0,67275.0,0.002]
[1722271148762,2.01904118,67276.0,67275.0,0.002]
[1722271149419,2.04235766,67276.0,67275.0,0.002]
[1722271149828,0.14,67262.0,67255.0,0.00782986]
[1722271150028,0.85987066,67276.0,67254.0,0.1]
[1722271150029,0.27791606,67261.0,67260.0,0.743382]
[1722271150230,0.15439543,67261.0,67260.0,0.446029]
[1722271150430,0.05,67263.0,67262.0,0.1]
[1722271150608,0.05,67258.0,67256.0,0.148685]
[1722271150789,0.092,67266.0,67255.0,0.1]
[1722271150790,0.05,67256.0,67255.0,0.1]
[1722271150991,0.1544236,67256.0,67255.0,0.25409939]
[1722271151451,0.1544236,67256.0,67255.0,0.35409939]
[1722271151595,0.1544236,67256.0,67255.0,0.25409939]
[1722271152053,0.05,67264.0,67256.0,0.29737]
[1722271152209,0.04,67262.0,67258.0,0.14868]
[1722271152413,0.05,67260.0,67259.0,0.14309939]
[1722271152619,0.15443754,67260.0,67259.0,0.14309939]
[1722271152823,0.15443101,67262.0,67259.0,0.44045639]
[1722271153020,0.15443101,67261.0,67260.0,0.148676]
[1722271153253,0.15443101,67261.0,67260.0,0.14309939]
[1722271153254,0.05,67261.0,67260.0,0.14309939]
[1722271153730,0.07331741,67261.0,67260.0,0.14309939]
[1722271153929,0.05,67261.0,67260.0,0.14309939]
[1722271154159,0.15442523,67261.0,67260.0,0.29177539]
[1722271154570,0.002,67267.0,67260.0,0.29177539]
[1722271154571,0.04,67267.0,67260.0,0.14309939]
[1722271154769,0.15442237,67266.0,67261.0,0.14309939]
[1722271154970,0.20442237,67266.0,67262.0,0.297344]
[1722271155176,0.15442237,67265.0,67264.0,0.148666]
[1722271155404,0.14,67267.0,67265.0,0.148665]
[1722271155542,0.04,67267.0,67266.0,0.14309939]
[1722271155748,0.09,67267.0,67266.0,0.14309939]
[1722271155976,0.1,67267.0,67266.0,0.14309939]
[1722271156150,0.05,67267.0,67266.0,0.14309939]
[1722271156380,0.20442036,67267.0,67266.0,0.14309939]
[1722271156593,0.15442036,67267.0,67266.0,0.29176239]
[1722271156810,0.15442036,67267.0,67266.0,0.14309939]
[1722271156811,0.20442036,67267.0,67266.0,0.14309939]
[1722271157016,0.20642036,67267.0,67266.0,0.14309939]
[1722271157264,0.17773659,67267.0,67266.0,0.29176239]
[1722271157428,0.17773659,67267.0,67266.0,0.14309939]
[1722271157624,0.17773659,67267.0,67266.0,0.14909939]
[1722271157625,0.20442036,67267.0,67266.0,0.14909939]
[1722271158097,0.20642036,67267.0,67266.0,0.14909939]
[1722271158294,0.20442036,67267.0,67266.0,0.14909939]
[1722271158722,0.15442036,67267.0,67266.0,0.14909939]
[1722271158851,0.05,67271.0,67266.0,0.24909939]
[1722271159057,0.1544152,67270.0,67269.0,0.445969]
[1722271159260,0.05,67276.0,67269.0,0.24309939]
[1722271159519,0.05,67276.0,67270.0,0.24309939]
[1722271159655,0.04,67274.0,67272.0,0.148649]
[1722271159855,0.04,67274.0,67273.0,0.24309939]
[1722271160196,0.05,67276.0,67275.0,0.148643]
[1722271160372,0.05,67276.0,67275.0,0.68902939]
[1722271160776,0.05,67276.0,67275.0,0.24309939]
[1722271161341,0.2943991,67276.0,67275.0,0.14309939]
[1722271161544,0.05,67276.0,67275.0,0.14309939]
[1722271161695,0.05,67276.0,67275.0,0.29174239]
[1722271161944,0.05,67276.0,67275.0,0.58902939]
[1722271162639,0.00838,67285.0,67282.0,0.148627]
[1722271162841,0.15438977,67284.0,67283.0,0.29172439]
[1722271163047,0.25438977,67284.0,67283.0,0.29172439]
[1722271163271,0.15438977,67284.0,67283.0,0.58897539]
[1722271163425,0.17770092,67284.0,67283.0,0.14309939]
[1722271163626,0.07331115,67284.0,67283.0,0.14309939]
[1722271163848,0.02331115,67284.0,67283.0,0.58897539]
[1722271164047,0.07331115,67284.0,67283.0,0.58897539]
[1722271164418,0.07331115,67284.0,67283.0,0.29172439]
[1722271164827,0.07331115,67284.0,67283.0,0.88622639]
[1722271164828,0.02331115,67284.0,67283.0,0.88622639]
[1722271165024,0.02331115,67284.0,67283.0,0.58897539]
[1722271165748,0.02331115,67284.0,67283.0,0.88622639]
[1722271166396,0.06331115,67284.0,67283.0,0.14309939]
[1722271166603,0.16331115,67284.0,67283.0,0.14309939]
[1722271166999,0.16331115,67284.0,67270.0,0.1]
[1722271167000,0.09,67276.0,67270.0,0.1]